fUST/lending_fUST_20250625
["ID","MTS","AMOUNT","RATE_DAILY","PERIOD"]
[367509942,1750836651619,-151.0,0.00017979,2]
[367509943,1750836651629,-460.0,0.00017979,2]
[367509945,1750836651638,-151.0,0.00017979,2]
[367509947,1750836651647,-299.683389,0.00017979,2]
[367509949,1750836651656,-299.683389,0.00017979,2]
[367509951,1750836651665,-168.498879,0.00017979,2]
[367509953,1750836651675,-460.0,0.00017979,2]
[367509955,1750836651684,-460.0,0.00017979,2]
[367509957,1750836651693,-309.17,0.00017979,2]
[367509959,1750836651702,-326.52597645,0.00017979,2]
[367509961,1750836651711,-432.89,0.00017979,2]
[367509963,1750836651720,-460.0,0.00017979,2]
[367509965,1750836651729,-460.0,0.00017979,2]
[367509967,1750836651738,-476.91,0.00017979,2]
[367509969,1750836651747,-711.08,0.00017979,2]
[367509971,1750836651758,-1126.75,0.00017979,2]
[367509973,1750836651767,-460.0,0.00017979,2]
[367509975,1750836651776,-460.0,0.00017979,2]
[367509977,1750836651786,-769.07,0.00017979,2]
[367509979,1750836651796,-316.93423885,0.00017979,2]
[367509981,1750836651807,-460.0,0.00017979,2]
[367509983,1750836651816,-1068.09,0.00017979,2]
[367509985,1750836651826,-677.6,0.00017979,2]
[367509987,1750836651835,-460.0,0.00017979,2]
[367509989,1750836651844,-460.0,0.00017979,2]
[367509991,1750836651854,-11691.78,0.00017979,2]
[367509993,1750836651863,-460.0,0.00017979,2]
[367509995,1750836651872,-1155.77,0.00017979,2]
[367509997,1750836651882,-533.13,0.00017979,2]
[367509999,1750836651891,-623.69,0.00017979,2]
[367510001,1750836651901,-594.24,0.00017979,2]
[367510003,1750836651910,-151.0,0.00017979,2]
[367510005,1750836651919,-152.940868,0.00017979,2]
[367510007,1750836651928,-151.0,0.00017979,2]
[367510009,1750836651937,-460.0,0.00017979,2]
[367510011,1750836651947,-460.0,0.00017979,2]
[367510013,1750836651956,-460.0,0.00017979,2]
[367510015,1750836651965,-151.0,0.00017979,2]
[367510017,1750836651974,-460.0,0.00017979,2]
[367510019,1750836651983,-151.0,0.00017979,2]
[367510021,1750836651992,-460.0,0.00017979,2]
[367510023,1750836652002,-151.0,0.00017979,2]
[367510025,1750836652011,-460.0,0.00017982,2]
[367510026,1750836652020,-460.0,0.00017982,2]
[367510028,1750836652030,-460.0,0.00017982,2]
[367510030,1750836652039,-460.0,0.00017982,2]
[367510032,1750836652049,-460.0,0.00017983,2]
[367510034,1750836652058,-972.16,0.00017983,2]
[367510036,1750836652067,-460.0,0.00017983,2]
[367510038,1750836652078,-151.0,0.00017983,2]
[367510040,1750836652088,-151.0,0.00017983,2]
[367510042,1750836652098,-151.0,0.00017983,2]
[367510044,1750836652107,-151.0,0.00017983,2]
[367510046,1750836652116,-460.0,0.00017985,2]
[367510048,1750836652125,-460.0,0.00017985,2]
[367510050,1750836652134,-229.90573568,0.00017987,2]
[367510052,1750836652143,-460.0,0.00017987,2]
[367510054,1750836652153,-460.0,0.00017987,2]
[367510056,1750836652162,-438.99813327,0.00017987,2]
[367510058,1750836652172,-3000.0,0.00018,2]
[367510060,1750836652182,-3191.12234676,0.00018,2]
[367510062,1750836652190,-3191.12234648,0.00018,2]
[367510064,1750836652199,-3191.12234648,0.00018,2]
[367510066,1750836652209,-3191.12234648,0.00018,2]
[367510068,1750836652218,-151.0,0.00018,2]
[367510070,1750836652227,-3191.12234648,0.00018003,2]
[367510072,1750836652236,-151.0,0.000181,2]
[367510074,1750836652245,-500.0,0.00018165,2]
[367510076,1750836652254,-500.0,0.00018165,2]
[367510078,1750836652263,-500.0,0.00018165,2]
[367510080,1750836652272,-500.0,0.00018165,2]
[367510082,1750836652281,-500.0,0.00018165,2]
[367510084,1750836652291,-500.0,0.00018165,2]
[367510086,1750836652300,-500.0,0.00018165,2]
[367510088,1750836652309,-500.0,0.00018165,2]
[367510090,1750836652319,-151.0,0.000182,2]
[367510092,1750836652329,-151.0,0.000182,2]
[367510094,1750836652338,-1954.039222,0.00018221,2]
[367510096,1750836652347,-151.0,0.00018239,2]
[367510098,1750836652356,-151.0,0.00018239,2]
[367510100,1750836652365,-151.0,0.00018239,2]
[367510102,1750836652375,-155.718035,0.00018239,2]
[367510104,1750836652384,-155.718035,0.00018239,2]
[367510105,1750836652393,-478.06,0.00018243,3]
[367510107,1750836652402,-1489.5,0.0001825,2]
[367510109,1750836652411,-460.0,0.0001825,2]
[367510111,1750836652421,-817.47,0.0001825,2]
[367510113,1750836652430,-4684.96,0.0001825,2]
[367510115,1750836652439,-460.0,0.0001825,2]
[367510117,1750836652449,-1024.43,0.0001825,2]
[367510119,1750836652458,-1041.84,0.0001825,2]
[367510121,1750836652467,-6719.84,0.0001825,2]
[367510123,1750836652477,-5819.39,0.0001825,2]
[367510125,1750836652486,-613.57,0.0001825,2]
[367510127,1750836652497,-460.0,0.0001825,2]
[367510129,1750836652509,-487.16,0.00018251,2]
[367510131,1750836652518,-460.0,0.00018251,2]
[367510133,1750836652527,-460.0,0.00018251,2]
[367510135,1750836652536,-460.0,0.00018251,2]
[367510137,1750836652546,-1301.13,0.00018251,2]
[367510139,1750836652556,-460.0,0.00018251,2]
[367510141,1750836652566,-460.0,0.00018251,2]
[367510143,1750836652576,-151.0,0.00018251,2]
[367510145,1750836652586,-460.0,0.00018251,2]
[367510147,1750836652595,-151.0,0.00018251,2]
[367510149,1750836652604,-151.0,0.00018251,2]
[367510151,1750836652613,-151.0,0.00018251,2]
[367510153,1750836652622,-1216.73,0.00018251,2]
[367510155,1750836652631,-300.586875,0.00018251,2]
[367510157,1750836652643,-460.0,0.00018251,2]
[367510159,1750836652652,-598.693518,0.00018251,2]
[367510161,1750836652661,-19479.86127937,0.00018251,2]
[367510164,1750836652676,-354.66732368,0.00018251,2]
[367510166,1750836652687,-1181.58139695,0.00018251,2]
[367510168,1750836652696,-598.693518,0.00018251,2]
[367510170,1750836652705,-438.14,0.00018251,2]
[367510172,1750836652715,-460.0,0.00018251,2]
[367510174,1750836652724,-1180.12345581,0.00018251,2]
[367510176,1750836652735,-616.01654419,0.00018251,2]
[367510178,1750836652744,-460.0,0.00018251,2]
[367510180,1750836652754,-460.0,0.00018253,2]
[367510182,1750836652763,-460.0,0.00018253,2]
[367510184,1750836652773,-460.0,0.00018253,2]
[367510186,1750836652782,-460.0,0.00018253,2]
[367510188,1750836652792,-460.0,0.00018253,2]
[367510190,1750836652801,-460.0,0.00018253,2]
[367510192,1750836652810,-460.0,0.00018253,2]
[367510194,1750836652819,-460.0,0.00018253,2]
[367510196,1750836652828,-151.0,0.00018253,2]
[367510197,1750836652837,-151.0,0.00018253,2]
[367510199,1750836652847,-173.8,0.00018253,2]
[367510201,1750836652856,-151.0,0.00018253,2]
[367510203,1750836652866,-151.0,0.00018253,2]
[367510205,1750836652875,-460.0,0.00018253,2]
[367510207,1750836652885,-476.91,0.00018253,2]
[367510209,1750836652894,-711.08,0.00018253,2]
[367510211,1750836652904,-1126.75,0.00018253,2]
[367510213,1750836652914,-460.0,0.00018253,2]
[367510215,1750836652923,-476.608385,0.00018253,2]
[367510217,1750836652933,-333.81923705,0.00018253,2]
[367510219,1750836652943,-769.07,0.00018253,2]
[367510221,1750836652953,-476.608385,0.00018253,2]
[367510223,1750836652963,-460.0,0.00018253,2]
[367510225,1750836652976,-1068.09,0.00018253,2]
[367510227,1750836652990,-677.6,0.00018253,2]
[367510229,1750836653000,-174.86,0.00018253,2]
[367510231,1750836653010,-163.66091457,0.00018253,2]
[367510232,1750836653020,-558.33516492,0.00018253,2]
[367510235,1750836653036,-2432.69984497,0.00018253,2]
[367510237,1750836653048,-687.63105915,0.00018253,2]
[367510248,1750837450266,4444.29380636,0.00025555,60]
[367510249,1750837495890,-160.0,0.00016679,2]
[367510250,1750837729442,344.28387963,0.0001594,2]
[367510252,1750837738675,160.779413,0.00013699,2]
[367510253,1750837738988,322.88647022,0.0001594,2]
[367510358,1750837838342,-300.0,0.00016873,2]
[367510359,1750837838352,-300.0,0.00016873,2]
[367510360,1750837838362,-300.0,0.00016873,2]
[367510361,1750837838371,-1200.0,0.00016873,2]
[367510362,1750837838380,-300.0,0.00016873,2]
[367510364,1750837838390,-437.98106636,0.00016873,2]
[367510366,1750837838399,-608.84412754,0.00016873,2]
[367510414,1750837838848,-11.16170188,0.00016873,2]
[367510416,1750837838858,-500.0,0.00016873,2]
[367510418,1750837838867,-352.4780365,0.00016873,2]
[367510420,1750837838877,-263.01657569,0.00016873,2]
[367510421,1750837838886,-460.0,0.00016874,2]
[367510422,1750837838896,-370.05226474,0.00016874,2]
[367510423,1750837838905,-460.0,0.00016874,2]
[367510424,1750837838914,-460.0,0.00016874,2]
[367510425,1750837838935,-519.21,0.00016874,2]
[367510426,1750837838946,-460.0,0.00016874,2]
[367510427,1750837838956,-3743.46,0.00016874,2]
[367510428,1750837838965,-1480.22,0.00016874,2]
[367510429,1750837838975,-460.0,0.00016874,2]
[367510430,1750837838984,-4733.57,0.00016874,2]
[367510431,1750837838994,-460.0,0.00016874,2]
[367510432,1750837839004,-800.55,0.00016874,2]
[367510434,1750837839013,-517.68,0.00016874,2]
[367510435,1750837839023,-5183.74,0.00016874,2]
[367510436,1750837839032,-596.62307046,0.00016874,2]
[367510437,1750837839042,-460.0,0.00016874,2]
[367510439,1750837839052,-460.0,0.00016874,2]
[367510441,1750837839062,-460.0,0.00016874,2]
[367510443,1750837839079,-200.99663291,0.00016874,2]
[367510445,1750837839090,-893.87,0.00016874,2]
[367510447,1750837839100,-409.68981604,0.00016875,2]
[367510449,1750837839110,-460.0,0.00016875,2]
[367510451,1750837839119,-313.48931798,0.00016875,2]
[367510453,1750837839129,-460.0,0.00016875,2]
[367510455,1750837839139,-470.0,0.00016875,2]
[367510457,1750837839148,-460.0,0.00016875,2]
[367510459,1750837839157,-460.0,0.00016875,2]
[367510461,1750837839167,-460.0,0.00016875,2]
[367510463,1750837839176,-216.78110855,0.00016875,2]
[367510465,1750837839186,-460.0,0.00016875,2]
[367510468,1750837839195,-711.73,0.00016875,2]
[367510470,1750837839205,-1175.65,0.00016875,2]
[367510472,1750837839215,-460.0,0.00016875,2]
[367510474,1750837839225,-460.0,0.00016875,2]
[367510476,1750837839241,-460.0,0.00016875,2]
[367510478,1750837839251,-1033.35,0.00016875,2]
[367510480,1750837839261,-353.33576785,0.00016875,2]
[367510482,1750837839270,-460.0,0.00016875,2]
[367510484,1750837839280,-460.0,0.00016875,2]
[367510486,1750837839289,-460.0,0.00016875,2]
[367510488,1750837839299,-460.0,0.00016875,2]
[367510490,1750837839308,-460.0,0.00016875,2]
[367510492,1750837839318,-460.0,0.00016875,2]
[367510494,1750837839328,-460.0,0.00016875,2]
[367510496,1750837839337,-460.0,0.00016875,2]
[367510498,1750837839347,-1027.55,0.00016875,2]
[367510500,1750837839357,-566.65468876,0.00016875,2]
[367510502,1750837839367,-460.0,0.00016875,2]
[367510504,1750837839377,-580.02,0.00016875,2]
[367510506,1750837839389,-460.0,0.00016875,2]
[367510508,1750837839398,-460.0,0.00016875,2]
[367510511,1750837839408,-457.13057445,0.00016875,2]
[367510512,1750837839418,-15762.09,0.00016875,2]
[367510515,1750837839427,-460.0,0.00016875,2]
[367510517,1750837839437,-460.0,0.00016875,2]
[367510519,1750837839447,-1899.52,0.00016875,2]
[367510521,1750837839456,-460.0,0.00016875,2]
[367510523,1750837839465,-460.0,0.00016875,2]
[367510525,1750837839475,-460.0,0.00016875,2]
[367510527,1750837839485,-460.0,0.00016875,2]
[367510529,1750837839495,-332.42563371,0.00016875,2]
[367510531,1750837839504,-460.0,0.00016875,2]
[367510533,1750837839513,-830.33,0.00016875,2]
[367510535,1750837839523,-460.0,0.00016875,2]
[367510537,1750837839533,-500.0,0.00016875,2]
[367510539,1750837839544,-500.0,0.00016875,2]
[367510541,1750837839556,-500.0,0.00016875,2]
[367510543,1750837839566,-500.0,0.00016875,2]
[367510545,1750837839576,-500.0,0.00016875,2]
[367510548,1750837839586,-500.0,0.00016875,2]
[367510550,1750837839596,-500.0,0.00016875,2]
[367510551,1750837839607,-500.0,0.00016875,2]
[367510554,1750837839617,-500.0,0.00016875,2]
[367510556,1750837839627,-500.0,0.00016875,2]
[367510558,1750837839636,-500.0,0.00016875,2]
[367510560,1750837839646,-500.0,0.00016875,2]
[367510562,1750837839656,-500.0,0.00016875,2]
[367510564,1750837839667,-500.0,0.00016875,2]
[367510566,1750837839676,-500.0,0.00016875,2]
[367510568,1750837839686,-500.0,0.00016875,2]
[367510570,1750837839696,-500.0,0.00016875,2]
[367510572,1750837839706,-500.0,0.00016875,2]
[367510574,1750837839716,-500.0,0.00016875,2]
[367510576,1750837839725,-500.0,0.00016875,2]
[367510578,1750837839735,-892.41488136,0.00016875,2]
[367510580,1750837839745,-892.41488136,0.00016875,2]
[367510582,1750837839755,-500.0,0.00016875,2]
[367510584,1750837839765,-500.0,0.00016875,2]
[367510587,1750837839775,-892.41488136,0.00016875,2]
[367510589,1750837839784,-500.0,0.00016875,2]
[367510591,1750837839794,-312.09793267,0.00016875,2]
[367510593,1750837839804,-892.41488136,0.00016875,2]
[367510595,1750837839813,-892.41488136,0.00016875,2]
[367510597,1750837839823,-500.0,0.00016875,2]
[367510599,1750837839832,-892.41488136,0.00016875,2]
[367510601,1750837839841,-500.0,0.00016875,2]
[367510603,1750837839850,-892.41488136,0.00016875,2]
[367510605,1750837839859,-892.41488136,0.00016875,2]
[367510607,1750837839869,-892.41488136,0.00016875,2]
[367510609,1750837839879,-887.38074612,0.00016875,2]
[367510611,1750837839889,-500.0,0.00016875,2]
[367510613,1750837839899,-500.0,0.00016875,2]
[367510615,1750837839908,-887.38074612,0.00016875,2]
[367510617,1750837839919,-887.38074612,0.00016875,2]
[367510619,1750837839929,-500.0,0.00016875,2]
[367510621,1750837839939,-887.38074612,0.00016875,2]
[367510623,1750837839949,-887.38074612,0.00016875,2]
[367510625,1750837839958,-500.0,0.00016875,2]
[367510627,1750837839968,-500.0,0.00016875,2]
[367510629,1750837839978,-500.0,0.00016875,2]
[367510631,1750837839988,-500.0,0.00016875,2]
[367510633,1750837840001,-468.46855286,0.00016875,2]
[367510636,1750837840010,-506.58158878,0.00016876,2]
[367510638,1750837840020,-412.53466667,0.00016876,2]
[367510640,1750837840029,-460.0,0.00016876,2]
[367510642,1750837840039,-460.0,0.00016876,2]
[367510644,1750837840050,-460.0,0.00016876,2]
[367510646,1750837840063,-451.70702414,0.00016876,2]
[367510648,1750837840072,-460.0,0.00016876,2]
[367510650,1750837840083,-460.0,0.00016876,2]
[367510652,1750837840092,-460.0,0.00016876,2]
[367510654,1750837840102,-460.0,0.00016876,2]
[367510656,1750837840111,-460.0,0.00016876,2]
[367510658,1750837840122,-500.0,0.00016876,2]
[367510660,1750837840131,-500.0,0.00016876,2]
[367510662,1750837840143,-460.0,0.00016876,2]
[367510665,1750837840153,-202.24794524,0.00016876,2]
[367510667,1750837840163,-460.0,0.00016876,2]
[367510669,1750837840172,-460.0,0.00016876,2]
[367510671,1750837840182,-460.0,0.00016876,2]
[367510673,1750837840191,-378.50239098,0.00016876,2]
[367510675,1750837840200,-460.0,0.00016876,2]
[367510677,1750837840210,-460.0,0.00016876,2]
[367510679,1750837840219,-460.0,0.00016876,2]
[367510681,1750837840229,-460.0,0.00016876,2]
[367510683,1750837840238,-460.0,0.00016876,2]
[367510685,1750837840248,-460.0,0.00016876,2]
[367510687,1750837840258,-460.0,0.00016876,2]
[367510689,1750837840268,-460.0,0.00016876,2]
[367510691,1750837840278,-460.0,0.00016876,2]
[367510693,1750837840288,-460.0,0.00016876,2]
[367510695,1750837840298,-460.0,0.00016876,2]
[367510697,1750837840307,-474.9075155,0.00016876,2]
[367510700,1750837840316,-553.65688001,0.00016876,2]
[367510702,1750837840326,-333.05678028,0.00016876,2]
[367510704,1750837840336,-460.0,0.00016876,2]
[367510706,1750837840345,-460.0,0.00016876,2]
[367510708,1750837840354,-460.0,0.00016876,2]
[367510710,1750837840364,-460.0,0.00016876,2]
[367510712,1750837840373,-460.0,0.00016876,2]
[367510714,1750837840382,-460.0,0.00016876,2]
[367510716,1750837840392,-464.80389089,0.00016876,2]
[367510718,1750837840401,-460.0,0.00016876,2]
[367510720,1750837840410,-460.0,0.00016876,2]
[367510722,1750837840420,-460.0,0.00016876,2]
[367510724,1750837840430,-460.0,0.00016876,2]
[367510726,1750837840439,-460.0,0.00016876,2]
[367510728,1750837840448,-460.0,0.00016876,2]
[367510730,1750837840458,-460.0,0.00016876,2]
[367510732,1750837840468,-460.0,0.00016876,2]
[367510734,1750837840477,-906.84,0.00016876,2]
[367510736,1750837840487,-460.0,0.00016876,2]
[367510738,1750837840497,-460.0,0.00016876,2]
[367510740,1750837840507,-460.0,0.00016876,2]
[367510742,1750837840516,-877.48,0.00016876,2]
[367510744,1750837840526,-460.0,0.00016876,2]
[367510746,1750837840535,-460.0,0.00016876,2]
[367510748,1750837840544,-460.0,0.00016876,2]
[367510750,1750837840554,-460.0,0.00016876,2]
[367510752,1750837840563,-460.0,0.00016876,2]
[367510754,1750837840573,-460.0,0.00016876,2]
[367510756,1750837840582,-289.46,0.00016876,2]
[367510758,1750837840592,-380.0,0.00016876,2]
[367510760,1750837840602,-460.0,0.00016876,2]
[367510762,1750837840612,-542.45,0.00016876,2]
[367510764,1750837840621,-688.52,0.00016876,2]
[367510766,1750837840631,-896.9,0.00016876,2]
[367510768,1750837840640,-483.72,0.00016876,2]
[367510770,1750837840650,-460.0,0.00016876,2]
[367510772,1750837840660,-9452.46,0.00016876,2]
[367510774,1750837840670,-460.0,0.00016876,2]
[367510776,1750837840680,-1053.69,0.00016876,2]
[367510779,1750837840690,-618.0,0.00016876,2]
[367510781,1750837840699,-460.0,0.00016876,2]
[367510783,1750837840709,-1073.51,0.00016876,2]
[367510785,1750837840718,-500.0,0.00016876,2]
[367510787,1750837840728,-460.0,0.00016876,2]
[367510789,1750837840737,-198.55525248,0.00016876,2]
[367510791,1750837840747,-151.0,0.00016876,2]
[367510793,1750837840758,-500.0,0.00016876,2]
[367510795,1750837840768,-460.0,0.00016876,2]
[367510797,1750837840778,-151.0,0.00016876,2]
[367510799,1750837840787,-151.0,0.00016876,2]
[367510801,1750837840797,-673.08,0.00016876,2]
[367510803,1750837840806,-500.0,0.00016876,2]
[367510805,1750837840815,-460.0,0.00016876,2]
[367510807,1750837840826,-151.0,0.00016876,2]
[367510809,1750837840835,-460.0,0.00016876,2]
[367510811,1750837840844,-460.0,0.00016876,2]
[367510813,1750837840854,-460.0,0.00016876,2]
[367510815,1750837840863,-460.0,0.00016876,2]
[367510817,1750837840872,-460.0,0.00016876,2]
[367510819,1750837840881,-386.94242314,0.00016876,2]
[367510821,1750837840890,-460.0,0.00016876,2]
[367510824,1750837840909,-460.0,0.00016876,2]
[367510826,1750837840919,-460.0,0.00016876,2]
[367510828,1750837840928,-188.72126539,0.00016876,2]
[367510830,1750837840938,-151.0,0.00016876,2]
[367510832,1750837840947,-461.17896764,0.00016876,2]
[367510834,1750837840957,-460.0,0.00016877,2]
[367510836,1750837840967,-355.68,0.00016877,2]
[367510838,1750837840977,-460.0,0.00016877,2]
[367510840,1750837840986,-460.0,0.00016877,2]
[367510842,1750837840996,-151.36624201,0.00016877,2]
[367510845,1750837841006,-151.0,0.00016877,2]
[367510847,1750837841015,-500.0,0.00016877,2]
[367510849,1750837841024,-151.0,0.00016877,2]
[367510851,1750837841033,-500.0,0.00016877,2]
[367510853,1750837841043,-500.0,0.00016877,2]
[367510854,1750837841056,-151.0,0.00016877,2]
[367510857,1750837841066,-500.0,0.00016877,2]
[367510859,1750837841075,-283.5687599,0.00016877,2]
[367510861,1750837841085,-151.57174881,0.00016877,2]
[367510863,1750837841095,-151.52813227,0.00016877,2]
[367510865,1750837841105,-460.0,0.00016878,2]
[367510867,1750837841114,-1000.0,0.00016878,2]
[367510869,1750837841124,-460.0,0.00016878,2]
[367510871,1750837841136,-460.0,0.00016878,2]
[367510873,1750837841146,-460.0,0.00016878,2]
[367510875,1750837841156,-461.72103532,0.00016878,2]
[367510877,1750837841165,-460.0,0.00016878,2]
[367510879,1750837841175,-460.0,0.00016878,2]
[367510881,1750837841184,-460.0,0.00016878,2]
[367510883,1750837841194,-463.79279247,0.00016878,2]
[367510885,1750837841203,-468.08,0.00016878,2]
[367510887,1750837841213,-460.0,0.00016878,2]
[367510889,1750837841222,-460.0,0.00016878,2]
[367510891,1750837841232,-460.0,0.00016878,2]
[367510893,1750837841241,-460.0,0.00016878,2]
[367510895,1750837841251,-460.0,0.00016878,2]
[367510897,1750837841261,-460.0,0.00016878,2]
[367510899,1750837841270,-460.0,0.00016878,2]
[367510902,1750837841280,-465.98167006,0.00016878,2]
[367510904,1750837841291,-460.0,0.00016878,2]
[367510906,1750837841300,-460.0,0.00016878,2]
[367510908,1750837841309,-492.84065387,0.00016878,2]
[367510910,1750837841319,-460.0,0.00016878,2]
[367510912,1750837841328,-430.0,0.00016878,2]
[367510914,1750837841338,-460.0,0.00016878,2]
[367510916,1750837841347,-460.0,0.00016878,2]
[367510918,1750837841356,-395.10309374,0.00016878,2]
[367510920,1750837841366,-460.0,0.00016878,2]
[367510922,1750837841376,-460.0,0.00016878,2]
[367510924,1750837841386,-460.0,0.00016878,2]
[367510926,1750837841395,-460.0,0.00016878,2]
[367510928,1750837841405,-500.0,0.00016879,2]
[367510930,1750837841414,-500.0,0.00016879,2]
[367510932,1750837841423,-460.0,0.00016879,2]
[367510934,1750837841433,-460.0,0.00016879,2]
[367510936,1750837841442,-460.0,0.00016879,2]
[367510938,1750837841452,-460.0,0.00016879,2]
[367510940,1750837841461,-851.9,0.00016879,2]
[367510942,1750837841471,-501.42897419,0.0001688,2]
[367510944,1750837841480,-460.0,0.0001688,2]
[367510946,1750837841490,-460.0,0.0001688,2]
[367510948,1750837841499,-505.97894725,0.0001688,2]
[367510950,1750837841509,-460.0,0.0001688,2]
[367510952,1750837841519,-460.0,0.0001688,2]
[367510954,1750837841528,-471.80144733,0.0001688,2]
[367510956,1750837841538,-460.0,0.0001688,2]
[367510959,1750837841548,-460.0,0.0001688,2]
[367510961,1750837841557,-460.0,0.0001688,2]
[367510963,1750837841567,-460.0,0.0001688,2]
[367510965,1750837841575,-500.0,0.00016882,2]
[367510967,1750837841585,-465.47019445,0.00016883,2]
[367510969,1750837841594,-460.53266509,0.00016883,2]
[367510991,1750837841787,-618.0,0.00016903,2]
[367510993,1750837841798,-500.0,0.00016903,2]
[367510995,1750837841808,-151.0,0.00016903,2]
[367510997,1750837841817,-500.0,0.00016903,2]
[367510999,1750837841827,-151.0,0.00016903,2]
[367511001,1750837841836,-245.85780394,0.00016903,2]
[367511003,1750837841845,-570.95606446,0.00016903,2]
[367511005,1750837841854,-198.0,0.00016903,2]
[367511008,1750837841864,-183.28015549,0.00016904,2]
[367511010,1750837841872,-500.0,0.00016904,2]
[367511012,1750837841882,-151.0,0.00016904,2]
[367511014,1750837841891,-500.0,0.00016904,2]
[367511016,1750837841900,-500.0,0.00016904,2]
[367511018,1750837841909,-500.0,0.00016904,2]
[367511019,1750837841919,-618.0,0.00016931,2]
[367511021,1750837841928,-500.0,0.00016931,2]
[367511024,1750837841937,-245.0,0.00016931,2]
[367511026,1750837841947,-500.0,0.00016931,2]
[367511028,1750837841956,-151.0,0.00016931,2]
[367511030,1750837841965,-500.0,0.00016932,2]
[367511032,1750837841975,-151.0,0.00016932,2]
[367511034,1750837841984,-349.58172341,0.00016932,2]
[367511036,1750837841993,-500.0,0.00016932,2]
[367511038,1750837842003,-500.0,0.00016932,2]
[367511040,1750837842012,-618.0,0.00016958,2]
[367511042,1750837842022,-500.0,0.00016958,2]
[367511044,1750837842031,-500.0,0.00016958,2]
[367511046,1750837842040,-246.5341841,0.00016958,2]
[367511048,1750837842050,-500.0,0.00016959,2]
[367511050,1750837842063,-151.0,0.00016959,2]
[367511052,1750837842072,-500.0,0.00016959,2]
[367511054,1750837842082,-500.0,0.00016959,2]
[367511056,1750837842091,-618.0,0.00016986,2]
[367511058,1750837842102,-500.0,0.00016986,2]
[367511060,1750837842111,-500.0,0.00016986,2]
[367511062,1750837842121,-500.0,0.00016987,2]
[367511064,1750837842131,-246.01127713,0.00016987,2]
[367511066,1750837842140,-500.0,0.00016987,2]
[367511068,1750837842150,-500.0,0.00016987,2]
[367511070,1750837842159,-618.0,0.00017013,2]
[367511072,1750837842169,-500.0,0.00017013,2]
[367511074,1750837842178,-154.09503508,0.00017013,2]
[367511076,1750837842187,-500.0,0.00017014,2]
[367511078,1750837842196,-500.0,0.00017014,2]
[367511080,1750837842205,-500.0,0.00017014,2]
[367511082,1750837842214,-618.0,0.0001704,2]
[367511084,1750837842226,-623.16222439,0.0001704,2]
[367511086,1750837842236,-500.0,0.00017041,2]
[367511088,1750837842245,-500.0,0.00017041,2]
[367511090,1750837842255,-500.0,0.00017041,2]
[367511092,1750837842265,-3536.35467112,0.00017049,2]
[367511094,1750837842275,-618.0,0.00017068,2]
[367511096,1750837842284,-165.98735537,0.00017069,2]
[367511098,1750837842294,-500.0,0.00017069,2]
[367511101,1750837842304,-500.0,0.00017069,2]
[367511102,1750837842313,-618.0,0.00017095,2]
[367511104,1750837842322,-500.0,0.00017096,2]
[367511107,1750837842332,-500.0,0.00017096,2]